fUSD/lending_fUSD_20251011
["ID","MTS","AMOUNT","RATE_DAILY","PERIOD"]
[390805855,1760164270821,-500.0,0.00030315,120]
[390805856,1760164270848,-500.0,0.00030315,120]
[390805857,1760164270876,-159.94,0.00030315,120]
[390805858,1760164270901,-500.0,0.00030315,120]
[390805859,1760164270926,-500.0,0.00030315,120]
[390805860,1760164270951,-406.09,0.00030315,120]
[390805861,1760164270977,-500.0,0.00030315,120]
[390805862,1760164271003,-500.0,0.00030315,120]
[390805863,1760164271028,-500.0,0.00030315,120]
[390805864,1760164271053,-500.0,0.00030315,120]
[390805865,1760164271079,-355.37,0.00030315,120]
[390805866,1760164271104,-2595.75416776,0.00030315,90]
[390805867,1760164271130,-104942.31276307,0.00030315,30]
[390805868,1760164271157,-400.0,0.00030315,120]
[390805869,1760164271182,-388714.39909321,0.00030315,30]
[390805870,1760164271206,-23235.54808629,0.00030315,120]
[390805871,1760164271232,-500.0,0.00030315,120]
[390805872,1760164271258,-500.0,0.00030315,120]
[390805873,1760164271285,-500.0,0.00030315,120]
[390805874,1760164271314,-500.0,0.00030315,120]
[390805875,1760164271342,-320.58,0.00030315,120]
[390805876,1760164271368,-500.0,0.00030315,120]
[390805877,1760164271398,-500.0,0.00030315,120]
[390805878,1760164271427,-500.0,0.00030315,120]
[390805879,1760164271454,-500.0,0.00030315,120]
[390805880,1760164271481,-500.0,0.00030315,120]
[390805881,1760164271508,-500.0,0.00030315,120]
[390805882,1760164271534,-485.44,0.00030315,120]
[390805883,1760164271560,-500.0,0.00030315,120]
[390805884,1760164271586,-500.0,0.00030315,120]
[390805885,1760164271611,-550.24,0.00030315,120]
[390805886,1760164271637,-500.0,0.00030315,120]
[390805887,1760164271664,-500.0,0.00030315,120]
[390805888,1760164271690,-500.0,0.00030315,120]
[390805889,1760164271717,-500.0,0.00030315,120]
[390805890,1760164271743,-500.0,0.00030315,120]
[390805891,1760164271769,-500.0,0.00030315,120]
[390805892,1760164271795,-500.0,0.00030315,120]
[390805893,1760164271820,-500.0,0.00030315,120]
[390805894,1760164271845,-500.0,0.00030315,120]
[390805895,1760164271871,-500.0,0.00030315,120]
[390805896,1760164271900,-500.0,0.00030315,120]
[390805897,1760164271926,-500.0,0.00030315,120]
[390805898,1760164271951,-500.0,0.00030315,120]
[390805899,1760164271976,-500.0,0.00030315,120]
[390805900,1760164272000,-446.44,0.00030315,120]
[390805901,1760164272025,-2898.90857013,0.00030315,62]
[390805902,1760164272050,-200.78960391,0.00030315,120]
[390805903,1760164272075,-2961.4681392,0.00030315,120]
[390805904,1760164272100,-623.51168052,0.00030315,120]
[390805905,1760164272124,-4060.78118007,0.00030315,120]
[390805906,1760164272149,-3983.51115536,0.00030315,30]
[390805907,1760164272174,-1534.71301913,0.00030315,120]
[390805908,1760164272200,-22808.77843925,0.00030315,30]
[390805909,1760164272226,-500.0,0.00030315,120]
[390805910,1760164272251,-500.0,0.00030315,120]
[390805911,1760164272277,-500.0,0.00030315,120]
[390805912,1760164272305,-296.25,0.00030315,120]
[390805913,1760164272332,-500.0,0.00030315,120]
[390805914,1760164272358,-500.0,0.00030315,120]
[390805915,1760164272384,-500.0,0.00030315,120]
[390805916,1760164272413,-500.0,0.00030315,120]
[390805917,1760164272440,-500.0,0.00030315,120]
[390805918,1760164272468,-500.0,0.00030315,120]
[390805919,1760164272494,-500.0,0.00030315,120]
[390805920,1760164272521,-500.0,0.00030315,120]
[390805921,1760164272548,-500.0,0.00030315,120]
[390805922,1760164272880,-500.0,0.00030315,120]
[390805923,1760164272910,-415.08,0.00030315,120]
[390805924,1760164272937,-500.0,0.00030315,120]
[390805925,1760164272965,-500.0,0.00030315,120]
[390805926,1760164272991,-500.0,0.00030315,120]
[390805927,1760164273017,-500.0,0.00030315,120]
[390805928,1760164273043,-500.0,0.00030315,120]
[390805929,1760164273069,-500.0,0.00030315,120]
[390805930,1760164273095,-592.5,0.00030315,120]
[390805931,1760164273121,-500.0,0.00030315,120]
[390805932,1760164273150,-500.0,0.00030315,120]
[390805933,1760164273177,-500.0,0.00030315,120]
[390805934,1760164273205,-500.0,0.00030315,120]
[390805935,1760164273232,-500.0,0.00030315,120]
[390805936,1760164273259,-207.54,0.00030315,120]
[390805937,1760164273285,-8763.0,0.00030315,30]
[390805938,1760164273313,-500.0,0.00030315,120]
[390805939,1760164273341,-500.0,0.00030315,120]
[390805940,1760164273367,-1000.0,0.00030315,30]
[390805941,1760164273397,-500.0,0.00030315,120]
[390805942,1760164273423,-500.0,0.00030315,120]
[390805943,1760164273450,-500.0,0.00030315,120]
[390805944,1760164273476,-500.0,0.00030315,120]
[390805945,1760164273503,-531.07,0.00030315,120]
[390805946,1760164273528,-500.0,0.00030315,120]
[390805947,1760164273554,-213.18,0.00030315,120]
[390805948,1760164273579,-767.67766561,0.00030315,120]
[390805949,1760164273604,-3700.0,0.00030315,120]
[390805950,1760164273631,-113662.92408843,0.00030315,30]
[390805951,1760164273661,-747.56886217,0.00030315,120]
[390805952,1760164273688,-184.85388,0.00030315,60]
[390805953,1760164273716,-179823.0,0.00030315,31]
[390805954,1760164273742,-9877.18649366,0.00030315,120]
[390805955,1760164273768,-147290.0,0.00030315,60]
[390805956,1760164273796,-252.0,0.00030315,120]
[390805957,1760164273823,-806.26319365,0.00030315,30]
[390805958,1760164273849,-149778.93704592,0.00030315,30]
[390805959,1760164299425,-124471.51315408,0.00030315,30]
[390805960,1760164299453,-4000.0,0.00030315,120]
[390805961,1760164299481,-2100.0,0.00030315,120]
[390805962,1760164299508,-2800.0,0.00030315,120]
[390805963,1760164299534,-2800.0,0.00030315,120]
[390805964,1760164299561,-883848.48684592,0.00030315,120]
[390805965,1760164305450,-100210.4894331,0.00030315,120]
[390805966,1760164305478,-919809.5105669,0.00030315,60]
[390805967,1760164313633,-80190.4894331,0.00030315,60]
[390805968,1760164313660,-999999.0,0.00030315,120]
[390805969,1760164313687,-403.0,0.00030315,30]
[390805970,1760164313713,-2000.0,0.00030315,120]
[390805971,1760164313739,-1000.0,0.00030315,120]
[390805972,1760164314457,-1000.0,0.00030315,120]
[390805973,1760164314583,-1000.0,0.00030315,120]
[390805974,1760164314612,-1000.0,0.00030315,120]
[390805975,1760164314638,-357.43834208,0.00030315,120]
[390805976,1760164314664,-1000.0,0.00030315,120]
[390805977,1760164314690,-175.53752283,0.00030315,30]
[390805978,1760164314717,-1000.0,0.00030315,120]
[390805979,1760164314744,-1000.0,0.00030315,120]
[390805980,1760164314770,-108036.9343279,0.00030315,30]
[390805981,1760164314799,-310.599949,0.00030315,30]
[390805982,1760164314827,-243.89584619,0.00030315,30]
[390805983,1760164314853,-1074.0,0.00030315,120]
[390805984,1760164314879,-903.181787,0.00030315,120]
[390805985,1760164314907,-605.16546023,0.00030315,30]
[390805986,1760164314934,-152.88946,0.00030315,120]
[390805987,1760164314961,-5105.13198409,0.00030315,30]
[390805988,1760164314987,-507.67483236,0.00030315,30]
[390805989,1760164315014,-779.05815557,0.00030315,60]
[390805990,1760164315041,-153.0,0.00030315,120]
[390805991,1760164315067,-1407.0,0.00030315,120]
[390805992,1760164315094,-3592.64215649,0.00030315,60]
[390805993,1760164315120,-2599.66332604,0.00030315,60]
[390805994,1760164315146,-48678.6307526,0.00030315,30]
[390805995,1760164315171,-220.03838601,0.00030315,60]
[390805996,1760164315197,-18824.63291774,0.00030315,120]
[390805997,1760164315222,-6586.05965669,0.00030315,120]
[390805998,1760164315248,-5100.0,0.00030315,41]
[390805999,1760164315275,-3000.0,0.00030315,120]
[390806000,1760164315302,-1825.0,0.00030315,120]
[390806001,1760164315334,-4348.5022451,0.00030315,120]
[390806002,1760164315361,-274.727591,0.00030315,60]
[390806003,1760164315390,-1000.0,0.00030315,60]
[390806004,1760164315418,-1000.0,0.00030315,60]
[390806005,1760164315459,-1000.0,0.00030315,30]
[390806006,1760164315489,-1000.0,0.00030315,60]
[390806007,1760164315519,-1000.0,0.00030315,30]
[390806008,1760164315546,-150.0,0.00030315,30]
[390806009,1760164315572,-214.3,0.00030315,30]
[390806010,1760164315598,-824.008,0.00030315,120]
[390806011,1760164315624,-10063.96666495,0.00030315,30]
[390806012,1760164315650,-880.55447366,0.00030315,120]
[390806013,1760164315676,-207.03229654,0.00030315,30]
[390806014,1760164315703,-519.40472592,0.00030315,30]
[390806015,1760164315729,-193.78441064,0.00030315,30]
[390806016,1760164315756,-169.1,0.00030315,30]
[390806017,1760164315784,-2192.59064729,0.00030315,31]
[390806018,1760164315810,-200.0,0.00030315,120]
[390806019,1760164315838,-2425.77568317,0.00030315,30]
[390806020,1760164317033,1600.0,0.00013287,2]
[390806021,1760164323592,808.1,0.00030315,30]
[390806022,1760164340643,151.2,6.637e-05,2]
[390806023,1760164340818,151.2,7.375e-05,2]
[390806024,1760164340894,151.2,8.112e-05,2]
[390806025,1760164341279,151.2,8.85e-05,2]
[390806026,1760164341483,151.2,9.588e-05,2]
[390806027,1760164341563,151.2,0.00010325,2]
[390806028,1760164341782,151.2,0.00011063,2]
[390806029,1760164341883,151.2,0.000118,2]
[390806030,1760164341981,151.2,0.00012538,2]
[390806031,1760164342075,151.2,0.00013275,2]
[390806032,1760164367991,200.0,0.0001326,2]
[390806033,1760164398482,500.0,0.00026902,120]
[390806035,1760164503062,822.05611648,0.00013215,2]
[390806036,1760164503082,273.61388352,0.00013215,2]
[390806037,1760164516536,534.8,0.0002739,120]
[390806038,1760164649869,300.0,0.00013214,2]
[390806039,1760164671421,11050.82,0.00013194,2]
[390806040,1760164751145,-856.483455,0.00013813,2]
[390806041,1760164751169,-539.70133083,0.00013882,2]
[390806042,1760164751194,-500.0,0.00013882,2]
[390806043,1760164751219,-500.0,0.00013882,2]
[390806044,1760164751244,-583.57963661,0.00013882,2]
[390806045,1760164751268,-213.52072956,0.00013882,2]
[390806046,1760164751294,-500.0,0.00013882,2]
[390806047,1760164751321,-500.0,0.00013882,2]
[390806048,1760164751346,-500.0,0.00013882,2]
[390806049,1760164751370,-506.37638479,0.00013882,2]
[390806050,1760164751392,-300.0,0.00013882,2]
[390806051,1760164751414,-300.0,0.00013883,2]
[390806052,1760164751436,-2000.0,0.00013883,2]
[390806053,1760164751461,-2000.0,0.00013884,2]
[390806054,1760164751492,-5888.0,0.00013885,2]
[390806055,1760164751524,-188.80176817,0.000139,5]
[390806056,1760164751564,-334.96,0.00013958,2]
[390806057,1760164751599,-1200.0,0.00014029,2]
[390806058,1760164751629,-1000.0,0.0001403,2]
[390806059,1760164751666,-1000.0,0.0001403,2]
[390806060,1760164751705,-6875.53451145,0.00014062,2]
[390806061,1760164751737,-334.96,0.00014095,2]
[390806062,1760164751771,-2500.0,0.000141,2]
[390806063,1760164751808,-150.0,0.00014121,2]
[390806064,1760164751839,-8565.75555911,0.00014122,2]
[390806065,1760164751871,-151.0,0.00014122,2]
[390806066,1760164751900,-621.78829552,0.00014122,2]
[390806067,1760164751933,-248.71531821,0.00014122,2]
[390806068,1760164751961,-6035.53740219,0.00014129,2]
[390806069,1760164751999,-2000.0,0.00014148,2]
[390806070,1760164752030,-2000.0,0.00014148,2]
[390806071,1760164752060,-2000.0,0.00014148,2]
[390806072,1760164752091,-2000.0,0.00014148,2]
[390806073,1760164752123,-2000.0,0.00014148,2]
[390806074,1760164752153,-2000.0,0.00014148,2]
[390806075,1760164752184,-2000.0,0.00014148,2]
[390806076,1760164752215,-2000.0,0.00014148,2]
[390806077,1760164752266,-2000.0,0.00014148,2]
[390806078,1760164752316,-2000.0,0.00014148,2]
[390806079,1760164752376,-200.0,0.00014162,2]
[390806080,1760164752437,-200.0,0.00014163,2]
[390806081,1760164752484,-174.0,0.00014168,2]
[390806082,1760164752523,-327.0,0.0001417,2]
[390806083,1760164752564,-8882.6885148,0.00014177,2]
[390806084,1760164752601,-808.18,0.000142,2]
[390806085,1760164752633,-1000.0,0.000142,2]
[390806086,1760164752668,-1008.0,0.000142,2]
[390806087,1760164752701,-1490.0,0.000142,2]
[390806088,1760164752734,-1375.0,0.000142,2]
[390806089,1760164752766,-1000.0,0.000142,2]
[390806090,1760164752808,-1000.0,0.000142,2]
[390806091,1760164752849,-1000.0,0.000142,2]
[390806092,1760164752887,-1000.0,0.000142,2]
[390806093,1760164752923,-1000.0,0.000142,2]
[390806094,1760164752959,-1000.0,0.000142,2]
[390806095,1760164752994,-460.554,0.000142,2]
[390806096,1760164753028,-1000.0,0.000142,2]
[390806097,1760164753060,-1000.0,0.000142,2]
[390806098,1760164753091,-623.234,0.000142,2]
[390806099,1760164753122,-1000.0,0.000142,2]
[390806100,1760164753155,-1000.0,0.000142,2]
[390806101,1760164753192,-3658.8747491,0.00014217,2]
[390806102,1760164753227,-278.0,0.00014219,2]
[390806103,1760164753260,-258.85296793,0.0001422,2]
[390806104,1760164753291,-322.6107,0.0001422,2]
[390806105,1760164753327,-182.84743364,0.0001422,2]
[390806106,1760164753359,-646.65982734,0.0001422,2]
[390806107,1760164753391,-151.0,0.0001422,2]
[390806108,1760164753422,-151.0,0.0001422,2]
[390806109,1760164753458,-151.0,0.0001422,2]
[390806110,1760164753507,-151.0,0.0001422,2]
[390806111,1760164753561,-151.0,0.0001422,2]
[390806112,1760164753610,-169.76617187,0.0001422,2]
[390806113,1760164753664,-521792.4957316,0.00014229,2]
[390806114,1760164753711,-500.0,0.00014229,2]
[390806115,1760164753745,-500.0,0.0001423,2]
[390806116,1760164753776,-9211.34798985,0.00014232,2]
[390806117,1760164753807,-977.0,0.00014237,2]
[390806118,1760164753837,-444.0,0.00014237,2]
[390806119,1760164753867,-255.0,0.00014237,2]
[390806120,1760164753898,-150.0,0.00014253,2]
[390806121,1760164753929,-500.0,0.00014253,2]
[390806122,1760164753959,-500.0,0.00014253,2]
[390806123,1760164753991,-6875.53451141,0.00014266,2]
[390806124,1760164754020,-241.0,0.00014269,2]
[390806125,1760164754049,-218.34,0.00014269,2]
[390806126,1760164754079,-1000.0,0.00014277,2]
[390806127,1760164754108,-1000.0,0.00014277,2]
[390806128,1760164754138,-1000.0,0.00014277,2]
[390806129,1760164754173,-1000.0,0.00014277,2]
[390806130,1760164754203,-1000.0,0.00014277,2]
[390806131,1760164754236,-184.10485413,0.00014277,2]
[390806132,1760164754268,-500.0,0.00014277,2]
[390806133,1760164754302,-582.0,0.00014277,2]
[390806134,1760164754336,-2269.0,0.00014277,2]
[390806135,1760164754377,-500.0,0.00014277,2]
[390806136,1760164754421,-500.0,0.00014277,2]
[390806137,1760164754466,-500.0,0.00014277,2]
[390806138,1760164754506,-430.0,0.00014277,2]
[390806139,1760164754544,-460.0,0.00014277,2]
[390806140,1760164754582,-500.0,0.00014277,2]
[390806141,1760164754618,-150.0,0.00014277,2]
[390806142,1760164754653,-150.0,0.00014277,2]
[390806143,1760164754691,-150.0,0.00014277,2]
[390806144,1760164754729,-500.0,0.00014277,2]
[390806145,1760164754763,-150.0,0.00014277,2]
[390806146,1760164754795,-955.0,0.00014277,2]
[390806147,1760164754838,-973.0,0.00014283,2]
[390806148,1760164754875,-273.0,0.00014283,2]
[390806149,1760164754912,-9552.16786547,0.00014287,2]
[390806150,1760164754950,-1015.0,0.000143,2]
[390806151,1760164754985,-1003.0,0.000143,2]
[390806152,1760164755018,-474.05,0.000143,2]
[390806153,1760164755051,-808.18,0.000143,2]
[390806154,1760164755084,-808.18,0.000143,2]
[390806155,1760164755118,-474.32,0.000143,2]
[390806156,1760164755149,-1092.3,0.000143,2]
[390806157,1760164755179,-353.39,0.000143,2]
[390806158,1760164755210,-302.24,0.000143,2]
[390806159,1760164756241,-474.4,0.000143,2]
[390806160,1760164756343,-990.32,0.000143,2]
[390806161,1760164756365,-916.61,0.000143,2]
[390806162,1760164756389,-170.35,0.000143,2]
[390806163,1760164756412,-150.0,0.000143,2]
[390806164,1760164756435,-1000.0,0.000143,2]
[390806165,1760164756461,-168.07,0.000143,2]
[390806166,1760164756484,-150.0,0.000143,2]
[390806167,1760164756508,-168.07,0.000143,2]
[390806168,1760164756532,-300.0,0.000143,2]
[390806169,1760164756556,-474.4,0.000143,2]
[390806170,1760164756579,-474.14,0.000143,2]
[390806171,1760164756601,-474.32,0.000143,2]
[390806172,1760164756624,-546.15,0.000143,2]
[390806173,1760164756661,-168.07,0.000143,2]
[390806174,1760164756690,-474.32,0.000143,2]
[390806175,1760164756715,-150.0,0.000143,2]
[390806176,1760164756740,-168.07,0.000143,2]
[390806177,1760164756765,-948.64,0.000143,2]
[390806178,1760164756791,-474.32,0.000143,2]
[390806179,1760164756815,-168.07,0.00014308,2]
[390806180,1760164756840,-298.72970812,0.00014308,2]
[390806181,1760164756865,-500.0,0.00014308,2]
[390806182,1760164756889,-500.0,0.00014308,2]
[390806183,1760164756914,-1667.36,0.00014325,2]
[390806184,1760164756940,-452.0,0.00014326,2]
[390806185,1760164756965,-6035.53740218,0.00014326,2]
[390806186,1760164756989,-450.0,0.00014328,5]
[390806187,1760164757012,-500.0,0.00014332,2]
[390806188,1760164757036,-582.0,0.00014332,2]
[390806189,1760164757059,-2269.0,0.00014332,2]
[390806190,1760164757084,-500.0,0.00014332,2]
[390806191,1760164757113,-500.0,0.00014332,2]
[390806192,1760164757138,-430.0,0.00014332,2]
[390806193,1760164757162,-460.0,0.00014332,2]
[390806194,1760164757187,-500.0,0.00014332,2]
[390806195,1760164757212,-150.0,0.00014332,2]
[390806196,1760164757237,-500.0,0.00014332,2]
[390806197,1760164757262,-955.0,0.00014332,2]
[390806198,1760164757288,-5565.0,0.00014334,2]
[390806199,1760164757314,-9905.5980765,0.00014342,2]
[390806200,1760164757339,-452.0,0.00014346,2]
[390806201,1760164757364,-1396.45875982,0.00014359,2]
[390806202,1760164757389,-1396.45875981,0.00014359,2]
[390806203,1760164757413,-302.91408941,0.00014363,2]
[390806204,1760164757439,-500.0,0.00014363,2]
[390806205,1760164757467,-452.0,0.00014363,2]
[390806206,1760164757491,-337.0,0.00014376,2]
[390806207,1760164757515,-280.21118357,0.00014387,2]
[390806208,1760164757541,-582.0,0.00014387,2]
[390806209,1760164757566,-2269.0,0.00014387,2]
[390806210,1760164757590,-500.0,0.00014387,2]
[390806211,1760164757614,-430.0,0.00014387,2]
[390806212,1760164757637,-460.0,0.00014387,2]
[390806213,1760164757661,-500.0,0.00014387,2]
[390806214,1760164757685,-150.0,0.00014387,2]
[390806215,1760164757710,-500.0,0.00014387,2]
[390806216,1760164757733,-955.0,0.00014387,2]
[390806217,1760164757757,-10272.10520533,0.00014397,2]
[390806218,1760164757781,-175.87,0.000144,2]
[390806219,1760164757804,-150.0,0.000144,2]
[390806220,1760164757827,-421.97,0.000144,2]
[390806221,1760164757851,-213.45,0.000144,2]
[390806222,1760164757875,-948.64,0.000144,2]
[390806223,1760164757898,-808.18,0.000144,2]
[390806224,1760164757922,-546.15,0.000144,2]
[390806225,1760164757947,-474.32,0.000144,2]
[390806226,1760164757971,-1712.99,0.000144,2]
[390806227,1760164757995,-595.10310668,0.000144,2]
[390806228,1760164870165,4104.54,0.00027397,120]
[390806229,1760164941160,154.64,0.000134,2]
[390806230,1760164966022,1523.85,0.00013583,2]
[390806231,1760164997815,511.612967,0.00026001,120]
[390806234,1760165355393,236.0,0.00013225,2]
[390806237,1760165383364,1461.07611648,0.00013219,2]
[390806238,1760165383384,1289.92388352,0.00013219,2]
[390806242,1760165392013,1000.0,0.00027,120]
[390806245,1760165423765,1445.86,0.00013205,2]
[390806251,1760165432283,-398.88400238,0.0001379,2]
[390806252,1760165432294,-190.61108958,0.00013791,2]
[390806253,1760165432304,-207.35812823,0.00013791,2]
[390806254,1760165432313,-527.25544227,0.00013791,2]
[390806255,1760165432323,-1200.0,0.00013792,2]
[390806256,1760165432332,-154.28516361,0.00013792,2]
[390806257,1760165432344,-420.26169723,0.00013792,2]
[390806272,1760165434226,-1425.45313916,0.00013792,2]
[390806273,1760165434236,-250.0,0.00013793,2]
[390806274,1760165434246,-300.0,0.00013793,2]
[390806275,1760165434256,-2000.0,0.00013793,2]
[390806276,1760165434265,-179.64838011,0.00013793,2]
[390806277,1760165434314,-120.35161989,0.00013793,2]
[390806278,1760165434324,-2364.81,0.00013794,2]
[390806279,1760165434334,-334.95,0.00013988,2]
[390806280,1760165434344,-5953.99130332,0.00014048,2]
[390806281,1760165434354,-452.0,0.00014091,2]
[390806282,1760165434363,-1000.0,0.000141,2]
[390806283,1760165434373,-150.0,0.0001412,2]
[390806284,1760165434382,-200.0,0.00014121,2]
[390806285,1760165434392,-151.0,0.00014121,2]
[390806286,1760165434402,-248.71531821,0.00014121,2]
[390806287,1760165434411,-8565.75555911,0.00014121,2]
[390806288,1760165434421,-200.0,0.00014121,2]
[390806289,1760165434430,-646.65982734,0.00014121,2]
[390806290,1760165434440,-322.6107,0.00014121,2]
[390806291,1760165434450,-621.78829552,0.00014121,2]
[390806292,1760165434459,-37.92803823,0.00014129,2]
[390806293,1760165434471,-28832.34743928,0.00014129,2]
[390806294,1760165434482,-96323.65402249,0.00014129,2]
[390806295,1760165434491,-2000.0,0.00014148,2]
[390806296,1760165434500,-2000.0,0.00014148,2]
[390806297,1760165434509,-2000.0,0.00014148,2]
[390806298,1760165434518,-1000.0,0.00014163,2]
[390806299,1760165434527,-1000.0,0.00014163,2]
[390806300,1760165434537,-1000.0,0.00014163,2]
[390806301,1760165434548,-1000.0,0.00014163,2]
[390806302,1760165434558,-1000.0,0.00014163,2]
[390806303,1760165434568,-1000.0,0.00014163,2]
[390806304,1760165434577,-1000.0,0.00014163,2]
[390806305,1760165434587,-1000.0,0.00014163,2]
[390806306,1760165434597,-1000.0,0.00014163,2]
[390806307,1760165434607,-1000.0,0.00014163,2]
[390806308,1760165434617,-956.1723,0.00014164,2]
[390806309,1760165434627,-8882.6885148,0.00014176,2]
[390806310,1760165434636,-783.1111062,0.00014213,2]
[390806311,1760165434646,-2000.0,0.00014225,2]
[390806312,1760165434659,-2000.0,0.00014225,2]
[390806313,1760165434668,-9211.34798985,0.00014231,2]
[390806314,1760165434677,-154.64,0.00014238,2]
[390806315,1760165434686,-222.79,0.00014245,2]
[390806316,1760165434697,-155.05740579,0.00014258,2]
[390806317,1760165434707,-8255.04451012,0.00014261,2]
[390806318,1760165434716,-4182.7229748,0.00014264,2]
[390806319,1760165434728,-17178.05364951,0.00014264,2]
[390806320,1760165434739,-322.0,0.00014268,2]
[390806321,1760165434749,-452.0,0.00014275,2]
[390806322,1760165434759,-200.0,0.00014285,2]
[390806323,1760165434768,-4086.35559198,0.00014286,2]
[390806324,1760165434780,-5465.81227349,0.00014286,2]
[390806325,1760165434790,-1238.0,0.00014292,2]
[390806326,1760165434799,-5953.99130329,0.00014299,2]
[390806327,1760165434809,-168.1,0.000143,2]
[390806328,1760165434819,-184.10485413,0.000143,2]
[390806329,1760165434829,-336.14,0.000143,2]
[390806330,1760165434839,-336.14,0.000143,2]
[390806331,1760165434848,-168.07,0.000143,2]
[390806332,1760165434857,-1021.25,0.000143,2]
[390806333,1760165434867,-474.32,0.000143,2]
[390806334,1760165434878,-150.0,0.000143,2]
[390806335,1760165434887,-352.71,0.000143,2]
[390806336,1760165434897,-168.1,0.000143,2]
[390806337,1760165434906,-474.32,0.000143,2]
[390806338,1760165434916,-150.0,0.000143,2]
[390806339,1760165434927,-150.0,0.000143,2]
[390806340,1760165434936,-393.95916979,0.000143,2]
[390806341,1760165434971,-414.22083021,0.000143,2]
[390806342,1760165434981,-147.7017702,0.000143,2]
[390806343,1760165434994,-28.1682298,0.000143,2]
[390806344,1760165435004,-808.18,0.000143,2]
[390806345,1760165435014,-474.32,0.000143,2]
[390806346,1760165435024,-808.18,0.000143,2]
[390806347,1760165435033,-150.0,0.000143,2]
[390806348,1760165435042,-481.48,0.000143,2]
[390806349,1760165435052,-1084.26,0.000143,2]
[390806350,1760165435062,-817.99,0.000143,2]
[390806351,1760165435073,-546.15,0.000143,2]
[390806352,1760165435084,-808.31,0.000143,2]
[390806353,1760165435094,-300.0,0.000143,2]
[390806354,1760165435105,-168.07,0.000143,2]
[390806355,1760165435115,-413.23,0.000143,2]
[390806356,1760165435127,-947.56,0.000143,2]
[390806357,1760165435137,-1559.75,0.000143,2]
[390806358,1760165435147,-546.15,0.000143,2]
[390806359,1760165435158,-1084.22,0.000143,2]
[390806360,1760165435168,-1092.3,0.000143,2]
[390806361,1760165435179,-413.23,0.000143,2]
[390806362,1760165435189,-1016.62,0.00014308,2]
[390806363,1760165435199,-9905.5980765,0.00014341,2]
[390806364,1760165435210,-784.2591,0.00014352,2]
[390806365,1760165435220,-11289.38281876,0.00014358,2]
[390806366,1760165435233,-874.67,0.00014358,2]
[390806367,1760165435263,-250.0,0.00014358,2]
[390806368,1760165435275,-281.175,0.00014358,2]
[390806369,1760165435289,-2475.883476,0.00014358,2]
[390806370,1760165437127,165.31,0.00010587,2]
[390806374,1760165438248,-10054.083869,0.00014358,2]
[390806375,1760165438259,-1000.0,0.00014358,2]
[390806694,1760165441543,-288.05210084,0.00014358,2]
[390806696,1760165441554,-18817.2770087,0.00014358,2]
[390806698,1760165441563,-13451.4389113,0.00014358,2]
[390806704,1760165441613,-2479.60985281,0.00014358,2]
[390806950,1760165446166,-7086.1644,0.00014358,2]
[390806951,1760165446857,2500.0,0.00027,120]
[390806960,1760165447332,-520.55631587,0.00014358,2]
[390806996,1760165489974,291.6,0.0001368,2]
[390806997,1760165544790,348.97480102,0.0001369,2]
[390806998,1760165898200,593.2,0.00013353,2]
[390807000,1760165930296,319.01,0.00013339,2]